bitfinex-derivatives/quotes_ETHF0:USTF0_20250213
["timestamp","ask_amount","ask_price","bid_price","bid_amount"]
[1739456551340,0.75626,2644.2,2643.9,3.21347752]
[1739456551541,0.75626,2644.2,2644.0,0.7563]
[1739456551744,0.75626,2644.2,2644.1,40.8]
[1739456551944,9.1251,2645.0,2644.1,44.72218185]
[1739456552241,0.75617,2644.6,2644.3,3.2078]
[1739456552442,0.75617,2644.6,2644.4,0.75619]
[1739456552746,0.75613,2644.7,2644.3,3.2078]
[1739456553243,1.89011,2645.0,2644.3,3.2078]
[1739456553436,1.89001,2645.1,2644.5,0.75617]
[1739456553737,0.75603,2645.0,2644.7,0.75611]
[1739456554041,0.7561,2644.8,2644.6,3.2078]
[1739456554345,0.75607,2644.9,2644.7,0.75611]
[1739456554837,0.00567752,2645.2,2644.6,5.2158]
[1739456555037,0.75611,2644.7,2644.6,5.2158]
[1739456555234,0.7561,2644.8,2644.6,5.97194]
[1739456555440,0.00567752,2645.2,2644.6,5.2158]
[1739456555737,0.75601,2645.1,2644.9,0.75604]
[1739456555940,0.76165752,2645.2,2645.0,3.96382]
[1739456556139,0.76164752,2645.2,2645.0,3.96382]
[1739456556337,0.756,2645.1,2645.0,3.2078]
[1739456556536,0.00567752,2645.2,2645.0,3.2078]
[1739456556842,0.00567752,2645.2,2645.1,0.756]
[1739456557338,5.9423,2645.9,2645.1,0.756]
[1739456557339,9.1501,2645.9,2645.1,7.6694]
[1739456557640,0.75584,2645.7,2645.4,3.9637]
[1739456557838,0.75589,2645.5,2645.4,3.2078]
[1739456558244,3.2078,2645.9,2645.4,3.2078]
[1739456558541,0.75583,2645.7,2645.4,3.96936752]
[1739456558745,3.21347752,2645.9,2645.4,3.21347752]
[1739456559044,0.00567752,2645.9,2645.4,3.21347752]
[1739456559736,0.75587,2645.6,2645.4,3.96937752]
[1739456560336,0.00567752,2645.9,2645.4,3.21347752]
[1739456560542,0.75589,2645.5,2645.4,3.21347752]
[1739456560938,0.75589,2645.5,2645.4,0.00567752]
[1739456561143,1.88989,2645.3,2644.8,3.2078]
[1739456561340,5.09754,2645.5,2644.8,3.2078]
[1739456561646,0.75606,2644.9,2644.8,3.2078]
[1739456562543,1.88991,2645.3,2644.7,2.007]
[1739456562732,1.88998,2645.2,2644.7,2.007]
[1739456562939,1.89001,2645.1,2644.6,25.46797752]
[1739456563146,0.75611,2644.7,2644.6,25.46797752]
[1739456563546,0.75609,2644.8,2644.6,26.22411752]
[1739456563845,0.75611,2644.7,2644.6,25.46797752]
[1739456564046,3.2078,2645.2,2644.6,25.46797752]
[1739456564243,0.75604,2645.0,2644.8,3.96387]
[1739456564439,3.2078,2645.2,2644.8,3.96387]
[1739456564440,0.75601,2645.1,2644.9,0.75604]
[1739456564638,0.75601,2645.1,2644.9,0.75606]
[1739456564945,3.2078,2645.2,2644.9,0.75606]
[1739456565149,0.75606,2644.9,2644.8,3.2078]
[1739456565346,1.88996,2645.2,2644.7,3.2078]
[1739456565639,5.09738,2645.7,2645.0,3.2078]
[1739456565843,0.756,2645.1,2644.7,7.12998185]
[1739456566045,9.55408,2645.7,2645.0,3.2078]
[1739456566046,7.6645,2645.7,2645.0,3.2078]
[1739456566249,7.6645,2645.7,2645.1,0.75598]
[1739456566451,7.6645,2645.7,2645.0,5.2148]
[1739456566645,7.6645,2645.7,2645.1,4.5031]
[1739456566837,4.4567,2645.7,2645.1,4.5031]
[1739456567452,0.75595,2645.3,2645.1,5.25908]
[1739456567648,4.4567,2645.7,2645.1,4.5031]
[1739456567851,0.75595,2645.3,2645.1,5.25908]
[1739456568043,4.4567,2645.7,2645.1,4.5031]
[1739456568248,5.5336,2645.8,2645.6,0.75585]
[1739456568249,0.75581,2645.8,2645.6,0.75585]
[1739456568452,0.00567752,2645.9,2645.3,3.2078]
[1739456568650,0.75584,2645.7,2645.5,0.75587]
[1739456568946,0.76145752,2645.9,2645.7,0.75582]
[1739456569252,0.76145752,2645.9,2645.6,3.2078]
[1739456569253,0.00567752,2645.9,2645.6,3.2078]
[1739456569650,0.75582,2645.8,2645.6,3.96365]
[1739456570138,0.00567752,2645.9,2645.5,2.76287]
[1739456570344,0.75584,2645.7,2645.5,2.76287]
[1739456570544,0.00567752,2645.9,2645.5,2.007]
[1739456570948,0.75586,2645.6,2645.5,2.007]
[1739456571350,0.75589,2645.5,2645.4,5.5289]
[1739456571555,0.75591,2645.4,2645.3,2.007]
[1739456573447,1.88954,2645.8,2645.3,2.007]
[1739456573641,0.75591,2645.4,2645.3,2.007]
[1739456574246,0.75591,2645.4,2645.3,2.76293]
[1739456574553,0.75591,2645.4,2645.3,2.007]
[1739456574749,3.2078,2645.6,2645.1,5.25908]
[1739456575050,0.75597,2645.2,2645.1,5.25908]
[1739456575449,5.10297752,2645.9,2645.1,4.5031]
[1739456575649,1.89517752,2645.9,2645.1,4.5031]
[1739456575845,0.00567752,2645.9,2645.3,3.2078]
[1739456576050,0.7559,2645.5,2645.4,0.7559]
[1739456576247,3.2078,2645.7,2645.1,4.5031]
[1739456576452,0.75597,2645.2,2645.1,5.2591]
[1739456576647,7.75095,2645.6,2645.5,0.75589]
[1739456576648,5.8613,2645.6,2645.5,0.75589]
[1739456576847,5.8613,2645.6,2645.1,6.39306]
[1739456576848,1.89512752,2645.9,2645.1,6.39306]
[1739456577051,0.75591,2645.5,2645.4,0.75591]
[1739456577751,0.75587,2645.6,2645.4,0.75589]
[1739456578156,0.75591,2645.4,2645.3,3.2078]
[1739456578659,1.88958,2645.7,2645.3,3.2078]
[1739456578953,5.10292752,2645.9,2645.3,3.2078]
[1739456579161,1.88951,2645.8,2645.3,3.96373]
[1739456579358,0.00567752,2645.9,2645.3,5.2138]
[1739456579553,0.75581,2645.8,2645.6,3.96363]
[1739456579952,0.75581,2645.8,2645.6,3.2078]
[1739456580253,0.00567752,2645.9,2645.6,3.2078]
[1739456580455,0.00567752,2645.9,2645.4,5.7405]
[1739456580657,0.75587,2645.6,2645.4,5.7405]
[1739456580854,0.75585,2645.7,2645.5,0.75589]
[1739456581051,0.75582,2645.8,2645.4,5.7405]
[1739456581258,3.2078,2646.5,2645.8,1.88945]
[1739456581452,3.92218185,2647.3,2646.3,3.2078]
[1739456581754,3.2078,2647.1,2646.3,6.576939]
[1739456581958,0.7556,2646.5,2646.4,5.8063]
[1739456582155,0.7557,2646.2,2646.0,3.2078]
[1739456582350,5.257989,2646.8,2645.9,24.5433]
[1739456582351,5.09673,2646.6,2645.9,24.5433]
[1739456582661,5.09673,2646.6,2645.9,19.794]
[1739456582662,0.00567752,2646.4,2645.9,19.794]
[1739456582959,0.75574,2646.0,2645.9,19.794]
[1739456583572,0.75577,2645.9,2645.8,0.00567752]
[1739456585759,0.75577,2645.9,2645.8,7.52e-06]
[1739456585964,8.76177,2645.9,2645.8,7.52e-06]
[1739456586159,14.39407,2645.9,2645.8,7.52e-06]
[1739456586464,15.02835116,2645.9,2645.8,7.52e-06]
[1739456586760,15.51024389,2645.9,2645.8,7.52e-06]
[1739456587264,15.57413031,2645.9,2645.8,7.52e-06]
[1739456587761,15.51024389,2645.9,2645.8,7.52e-06]
[1739456588565,15.57413833,2645.9,2645.8,7.52e-06]
[1739456589765,14.81836833,2645.9,2644.6,4.6879]
[1739456590063,0.75611,2644.7,2644.6,4.6879]
[1739456590258,7.13184298,2645.0,2644.1,28.9334]
[1739456590457,0.75626,2644.2,2644.1,28.9334]
[1739456590662,0.75626,2644.2,2644.1,23.0018]
[1739456590865,0.75626,2644.2,2644.1,19.794]
[1739456591058,0.75625,2644.3,2644.1,20.55027]
[1739456591260,0.75626,2644.2,2644.1,19.794]
[1739456591757,0.75631,2644.0,2643.9,0.00567752]
[1739456592357,1.89086,2643.9,2643.1,19.797]
[1739456592557,3.2078,2643.6,2643.1,19.797]
[1739456592753,0.75654,2643.2,2643.1,19.797]
[1739456592957,8.867,2643.6,2643.1,19.797]
[1739456593159,0.75654,2643.2,2643.1,19.797]
[1739456593669,8.867,2643.6,2643.1,19.797]
[1739456593964,3.2078,2643.6,2643.1,23.72104298]
[1739456594168,7.6458,2644.0,2643.3,3.2078]
[1739456594372,0.75643,2643.7,2643.4,0.75647]
[1739456594570,0.75643,2643.6,2643.4,0.75647]
[1739456594870,0.75641,2643.7,2643.4,0.75647]
[1739456595369,0.75646,2643.5,2643.3,0.7565]
[1739456595560,0.75646,2643.5,2643.4,40.8]
[1739456595762,7.6458,2644.0,2643.4,40.8]
[1739456596162,0.75646,2643.5,2643.4,40.8]
[1739456596466,7.6458,2644.0,2643.4,40.8]
[1739456596467,0.75634,2643.9,2643.4,3.2078]
[1739456596671,3.2078,2644.0,2643.6,0.75641]
[1739456596866,3.2078,2644.0,2643.5,5.9897]
[1739456597073,0.7564,2643.8,2643.5,6.74614]
[1739456597272,3.2078,2644.0,2643.5,5.9897]
[1739456597470,0.75627,2644.2,2643.9,0.75632]
[1739456597662,8.867,2644.3,2643.7,3.2078]
[1739456597870,6.41544,2644.3,2643.7,3.2078]
[1739456598171,0.75625,2644.3,2643.7,7.13184298]
[1739456598471,0.75633,2644.0,2643.7,7.88823298]
[1739456598672,0.75635,2643.9,2643.7,7.13184298]
[1739456598870,1.89618752,2644.4,2643.7,3.2078]
[1739456599074,3.2078,2644.3,2643.6,6.4691]
[1739456599374,1.89065,2644.2,2643.6,4.4621]
[1739456599574,3.2078,2644.0,2643.5,5.9897]
[1739456599771,0.75643,2643.6,2643.5,5.9897]
[1739456600177,7.52549,2644.1,2643.5,5.9897]
[1739456600366,5.6347,2644.1,2643.5,5.9897]
[1739456600761,3.2078,2644.0,2643.5,5.9897]
[1739456600973,0.75638,2643.8,2643.6,0.75641]
[1739456601166,0.75636,2643.9,2643.5,5.9897]
[1739456601472,0.76188752,2644.4,2644.2,0.75625]
[1739456601770,0.00567752,2644.4,2644.3,0.75623]
[1739456601972,0.00567752,2644.4,2644.3,3.96403]
[1739456602370,0.76187752,2644.4,2644.3,3.2078]
[1739456602577,0.00567752,2644.4,2644.3,3.2078]
[1739456602774,0.00567752,2644.4,2644.1,5.4399]
[1739456603074,0.75626,2644.2,2644.1,5.4399]
[1739456603473,0.75623,2644.3,2644.1,6.19616]
[1739456603675,0.00567752,2644.4,2644.1,6.19616]
[1739456603676,0.00567752,2644.4,2644.3,0.75623]
[1739456603974,0.00567752,2644.4,2644.1,8.6477]
[1739456604279,0.00567752,2644.4,2644.0,4.6872]
[1739456604473,0.75628,2644.1,2644.0,4.6872]
[1739456604976,0.7564,2643.7,2643.6,7.6595]
[1739456605172,1.89065,2644.2,2643.6,7.6595]
[1739456605474,13.3397,2644.3,2643.6,7.6595]
[1739456605777,0.75635,2643.9,2643.7,0.75639]
[1739456605971,0.75631,2644.0,2643.8,0.75635]
[1739456606376,0.75631,2644.0,2643.6,7.6595]
[1739456606577,0.75631,2644.0,2643.8,0.75637]
[1739456606879,0.75631,2644.0,2643.6,7.6595]
[1739456607075,8.8437,2644.3,2643.8,3.2078]
[1739456607273,0.75626,2644.2,2644.0,0.7563]
[1739456607576,0.00567752,2644.4,2644.1,3.2078]
[1739456607979,0.00567752,2644.4,2644.3,0.75623]
[1739456608176,0.76190752,2644.4,2644.2,0.75624]
[1739456608475,0.00567752,2644.4,2644.1,7.7702]
[1739456608681,0.00567752,2644.4,2644.3,4.68027298]
[1739456609073,0.00567752,2644.4,2644.3,10.67797298]
[1739456609575,3.2078,2645.0,2644.3,9.92174298]
[1739456609777,3.2078,2645.0,2644.5,3.2078]
[1739456610074,0.75618,2644.5,2644.3,9.92174298]
[1739456610381,0.75614,2644.7,2644.5,0.75617]
[1739456610582,1.88993,2645.2,2644.5,3.2078]
[1739456610781,0.00567752,2644.9,2644.8,3.2078]
[1739456611079,8.8078,2645.9,2644.8,5.2138]
[1739456611286,5.6,2645.9,2645.2,3.2078]
[1739456611481,5.6,2645.9,2645.4,0.75591]
[1739456611682,0.75572,2646.1,2645.5,3.2078]
[1739456611981,0.75572,2646.1,2645.7,0.75581]
[1739456612174,3.2078,2646.5,2645.6,5.4436]
[1739456612377,0.75578,2645.9,2645.6,5.4436]
[1739456612578,0.75577,2645.9,2645.8,0.00567752]
[1739456612778,3.21347752,2646.2,2645.8,0.00567752]
[1739456612977,0.75577,2645.9,2645.8,0.00567752]
[1739456613375,0.75573,2646.1,2645.8,0.00567752]
[1739456613876,0.75577,2645.9,2645.8,0.00567752]
[1739456616082,3.2078,2645.9,2645.3,5.6679]
[1739456616277,0.75591,2645.4,2645.3,5.6679]
[1739456617384,1.88957,2645.8,2645.1,0.00567752]
[1739456617385,0.75597,2645.2,2645.1,0.00567752]
[1739456617881,0.7559,2645.5,2645.2,0.75595]
[1739456618178,9.854,2645.8,2645.3,0.75593]
[1739456618383,0.75588,2645.6,2645.3,0.75593]
[1739456618580,0.75589,2645.5,2645.1,7.1375205]
[1739456618791,5.4611,2645.8,2645.4,3.2078]
[1739456618987,0.75587,2645.6,2645.4,3.96371]
[1739456619178,5.21947752,2646.2,2645.4,3.2078]
[1739456619378,1.88929,2646.1,2645.4,3.9637]
[1739456619681,5.21947752,2646.2,2645.4,3.2078]
[1739456619877,5.21947752,2646.2,2645.5,10.2386]
[1739456620076,0.75586,2645.6,2645.5,10.2386]
[1739456621080,1.88943,2646.0,2645.5,10.2386]
[1739456621081,0.00567752,2646.2,2645.5,5.92904298]
[1739456621282,9.0586,2647.0,2646.0,3.2078]
[1739456621486,9.0586,2647.0,2646.3,7.88748298]
[1739456621778,3.2078,2647.0,2646.6,3.92404298]
[1739456621985,0.75551,2646.8,2646.7,4.5188]
[1739456622889,3.21347752,2647.0,2646.7,4.5188]
[1739456623077,0.75551,2646.9,2646.7,4.5188]
[1739456623273,0.00567752,2647.0,2646.9,0.75548]
[1739456623478,3.2078,2647.5,2647.2,0.75539]
[1739456623776,0.7553,2647.6,2647.3,5.2128]
[1739456623976,7.7184,2647.9,2647.3,5.2128]
[1739456624180,3.2078,2647.9,2647.5,3.92404298]
[1739456624377,0.75524,2647.8,2647.5,3.92404298]
[1739456624577,3.2078,2647.9,2647.5,3.92404298]
[1739456624888,0.75523,2647.8,2647.5,3.92404298]
[1739456625281,3.21344858,2647.9,2647.3,5.2118]
[1739456625480,3.21344858,2647.9,2647.2,5.518]
[1739456625681,0.75532,2647.5,2647.2,5.518]
[1739456625983,3.21344858,2647.9,2647.2,5.518]
[1739456626177,3.21344858,2647.9,2647.3,3.2078]
[1739456626381,3.2078,2647.6,2647.1,19.794]
[1739456626585,0.7554,2647.2,2647.1,19.794]
[1739456626785,0.75543,2647.1,2647.0,3.2078]
[1739456627485,5.522,2647.5,2647.0,3.2078]
[1739456627888,0.75535,2647.4,2647.0,3.96324]
[1739456628193,0.75535,2647.4,2647.0,3.2078]
[1739456628487,0.75541,2647.2,2647.0,3.2078]
[1739456628886,0.75537,2647.3,2647.0,3.96326]
[1739456629182,5.522,2647.5,2647.0,3.2078]
[1739456629388,5.522,2647.5,2646.9,3.92404298]
[1739456629689,0.7553,2647.6,2647.2,0.75539]
[1739456629889,4.5863,2647.8,2647.1,3.2078]
[1739456630189,3.21344858,2647.9,2647.4,3.2078]
[1739456630388,0.75529,2647.6,2647.4,3.2078]
[1739456630584,0.75529,2647.6,2647.2,4.67942298]
[1739456631084,0.75531,2647.5,2647.2,4.67942298]
[1739456631289,0.75536,2647.4,2647.2,2.003]
[1739456631790,0.75529,2647.6,2647.2,5.92704298]
[1739456632086,0.75524,2647.8,2647.5,4.67935298]
[1739456632290,0.00564858,2647.9,2647.5,3.92404298]
[1739456632784,0.00564858,2647.9,2647.7,3.96305]
[1739456632987,0.00564858,2647.9,2647.7,3.2078]
[1739456633184,0.76084858,2647.9,2647.7,3.2078]
[1739456633383,0.76084858,2647.9,2647.7,5.2108]
[1739456633589,0.76086858,2647.9,2647.7,5.2108]
[1739456633895,0.75523,2647.8,2647.7,5.2108]
[1739456634486,0.00564858,2647.9,2647.7,5.2108]
[1739456634690,0.00564858,2647.9,2647.8,0.75523]
[1739456634995,0.00564858,2647.9,2647.7,2.003]
[1739456635286,0.76085858,2647.9,2647.7,2.003]
[1739456635487,0.00564858,2647.9,2647.7,5.2108]
[1739456635888,0.76086858,2647.9,2647.7,5.2108]
[1739456636287,0.00564858,2647.9,2647.7,5.2108]
[1739456636491,0.00564858,2647.9,2647.8,0.75523]
[1739456636693,0.00564858,2647.9,2647.7,5.96605]
[1739456636694,0.76086858,2647.9,2647.7,5.96605]
[1739456636990,0.75523,2647.8,2647.7,5.2108]
[1739456637494,0.00564858,2647.9,2647.8,0.75523]
[1739456637993,0.00564858,2647.9,2647.8,4.67927298]
[1739456638287,3.2078,2648.6,2647.8,3.92404298]
[1739456638486,0.75513,2648.2,2647.8,3.92404298]
[1739456638686,1.88758,2648.5,2647.8,3.92404298]
[1739456638888,3.2078,2648.6,2647.7,2.003]
[1739456638889,0.75523,2647.8,2647.7,2.003]
[1739456639292,1.88779,2648.2,2647.7,2.003]
[1739456639593,1.88766,2648.4,2647.7,5.2108]
[1739456639790,0.7552,2647.9,2647.7,5.96604]
[1739456639989,0.75523,2647.8,2647.7,5.2108]
[1739456640288,1.88765,2648.4,2647.7,5.2108]
[1739456640496,0.75523,2647.8,2647.7,5.2108]
[1739456640690,1.88779,2648.2,2647.7,5.2108]
[1739456640888,3.2078,2648.3,2647.7,3.2078]
[1739456641188,0.75529,2647.6,2647.5,0.00566658]
[1739456642995,0.75542,2647.2,2647.0,3.2078]
[1739456643394,0.75544,2647.1,2646.9,3.92404298]
[1739456643589,0.75542,2647.2,2646.9,4.67952298]
[1739456643999,0.00566658,2647.3,2646.7,3.2078]
[1739456644296,0.75549,2646.9,2646.8,0.00566658]
[1739456644887,3.2078,2647.1,2646.3,3.2078]
[1739456645096,3.2078,2646.5,2646.0,3.92404298]
[1739456645296,3.2078,2646.8,2646.0,3.92404298]
[1739456645497,3.2078,2646.8,2646.1,0.75571]
[1739456645696,3.2078,2646.8,2646.0,3.92404298]
[1739456646200,4.3592,2646.7,2646.1,0.00566658]
[1739456646396,0.75559,2646.6,2646.3,3.96344]
[1739456646602,4.3592,2646.7,2646.1,4.41606658]
[1739456646603,0.75564,2646.4,2646.1,4.41606658]
[1739456646901,0.75561,2646.5,2646.3,3.2078]
[1739456647303,0.7555,2646.9,2646.5,0.75557]
[1739456647506,5.8652,2647.2,2646.7,0.75553]
[1739456647507,0.75547,2647.0,2646.7,0.75553]
[1739456647800,10.2306,2647.2,2646.6,7.13184298]
[1739456647999,0.75551,2646.9,2646.6,7.13184298]
[1739456648204,10.2306,2647.2,2646.7,0.75552]
[1739456648402,10.2306,2647.2,2646.6,7.13184298]
[1739456648601,0.00566658,2647.3,2646.9,3.2078]
[1739456648899,0.75544,2647.1,2647.0,40.8]
[1739456649107,0.00566658,2647.3,2646.6,3.92404298]
[1739456649300,0.00566658,2647.3,2646.8,3.2078]
[1739456649503,0.7554,2647.2,2646.9,4.67952298]
[1739456649806,0.75546,2647.1,2646.9,3.92404298]
[1739456650003,0.75546,2647.0,2646.9,5.92604298]
[1739456650200,0.75546,2647.0,2646.9,46.72604298]
[1739456650706,0.75546,2647.0,2646.9,5.92604298]
[1739456650904,0.00566658,2647.3,2646.8,3.2078]
[1739456651101,0.75551,2646.8,2646.7,2.002]
[1739456651609,4.3896,2647.2,2646.7,2.002]
[1739456651804,4.3896,2647.2,2646.7,5.96533]
[1739456652005,0.75547,2647.0,2646.7,5.2098]
[1739456652206,0.75549,2646.9,2646.7,5.96533]
[1739456652403,4.3896,2647.2,2646.7,5.2098]
[1739456653001,0.75545,2647.1,2647.0,3.2078]
[1739456653210,0.75545,2647.1,2646.8,4.6955]
[1739456653414,0.00566658,2647.3,2647.0,3.2078]
[1739456653606,0.00566658,2647.3,2646.8,4.6955]
[1739456653804,0.75549,2646.9,2646.8,4.6955]
[1739456654005,0.75549,2646.9,2646.1,1.89490658]
[1739456654006,0.75566,2646.3,2646.1,0.00566658]
[1739456654311,0.75568,2646.2,2646.1,0.00566658]
[1739456654504,10.2809,2646.8,2646.1,0.00566658]
[1739456654709,3.21346658,2647.3,2646.6,3.2078]
[1739456654909,1.88851,2647.2,2646.6,3.2078]
[1739456655104,3.21346658,2647.3,2646.7,0.75552]
[1739456655307,3.21346658,2647.3,2646.6,3.2078]
[1739456656010,3.21346658,2647.3,2646.4,7.81508298]
[1739456656011,0.00566658,2647.3,2647.0,3.92404298]
[1739456656318,0.75543,2647.1,2647.0,9.67804298]
[1739456656611,0.00566658,2647.3,2646.9,5.96527]
[1739456656612,0.00566658,2647.3,2646.9,5.2098]
[1739456656810,0.75544,2647.1,2646.9,5.96527]
[1739456657111,0.75541,2647.2,2647.0,0.75543]
[1739456657312,0.00566658,2647.3,2647.0,3.92404298]
[1739456657505,0.75543,2647.1,2647.0,3.92404298]
[1739456657706,0.75546,2647.0,2646.9,5.2098]
[1739456657903,0.75546,2647.0,2646.9,2.002]
[1739456658807,0.00566658,2647.3,2646.9,2.002]
[1739456659001,0.75545,2647.1,2646.9,2.75748]
[1739456659219,0.00566658,2647.3,2646.9,2.002]
[1739456659516,0.00566658,2647.3,2647.0,3.2078]
[1739456659712,0.00566658,2647.3,2647.0,11.48734298]
[1739456659909,0.00566658,2647.3,2647.0,7.5633]
[1739456660104,0.75543,2647.1,2647.0,4.3555]
[1739456660305,0.00566658,2647.3,2646.7,7.13184298]
[1739456660510,0.75551,2646.8,2646.7,9.13284298]
[1739456661211,0.75551,2646.8,2646.7,2.001]
[1739456661914,1.88853,2647.2,2646.7,2.001]
[1739456662114,0.75551,2646.8,2646.7,2.001]
[1739456663416,0.75551,2646.8,2646.7,5.2088]
[1739456663610,0.75551,2646.8,2646.7,2.001]
[1739456663815,3.2078,2647.0,2646.5,5.754]
[1739456664014,5.6126,2646.9,2646.4,2.001]
[1739456664215,0.7556,2646.5,2646.4,5.2088]
[1739456664516,5.6126,2646.9,2646.4,5.2088]
[1739456664721,5.6126,2646.9,2646.6,0.75556]
[1739456664910,5.6126,2646.9,2646.4,9.13284298]
[1739456665106,0.7556,2646.5,2646.4,9.13284298]
[1739456665311,0.75568,2646.2,2646.1,7.13750956]
[1739456665512,0.75568,2646.2,2646.1,5.93070956]
[1739456665713,0.75568,2646.2,2646.1,2.00666658]
[1739456666813,1.88898,2646.6,2646.1,2.76237658]
[1739456667020,0.75564,2646.4,2646.3,0.75565]
[1739456667211,0.75564,2646.4,2646.1,5.93070956]
[1739456667414,7.50132,2646.9,2646.3,3.2078]
[1739456667715,5.6126,2646.9,2646.3,3.2078]
[1739456667915,5.6126,2646.9,2646.4,5.7585]
[1739456667916,0.75558,2646.6,2646.4,5.7585]
[1739456668221,7.50134,2646.9,2646.4,5.7585]
[1739456668425,0.75559,2646.6,2646.4,6.51411]
[1739456668720,0.7556,2646.5,2646.4,5.7585]
[1739456669021,0.7556,2646.5,2646.4,6.51413]
[1739456669321,0.7556,2646.5,2646.4,5.7585]
[1739456669819,0.75568,2646.3,2646.1,5.93070956]
[1739456670121,0.75564,2646.4,2646.3,0.75566]
[1739456670318,0.75552,2646.8,2646.7,0.75554]
[1739456670519,0.75554,2646.7,2646.4,5.48332]
[1739456670720,7.8469,2647.0,2646.4,8.65174298]
[1739456671016,5.6094,2647.4,2646.7,3.92404298]
[1739456671224,0.75549,2646.9,2646.8,7.4738]
[1739456672717,0.75549,2646.9,2646.8,8.22931]
[1739456672921,0.75549,2646.9,2646.8,7.4738]
[1739456673716,0.75547,2647.0,2646.8,7.4738]
[1739456674523,0.00566658,2647.3,2646.8,7.4738]
[1739456674727,0.7554,2647.2,2647.1,3.2078]
[1739456676819,0.7554,2647.2,2646.8,7.4738]
[1739456676820,0.00566658,2647.3,2646.8,10.6816]
[1739456677015,0.7554,2647.2,2647.1,3.2078]
[1739456677222,0.00566658,2647.3,2647.1,3.2078]
[1739456677517,0.00566658,2647.3,2647.1,3.96321]
[1739456677518,0.76103658,2647.3,2647.1,3.96321]
[1739456677724,0.00566658,2647.3,2647.2,0.7554]
[1739456677917,0.00566658,2647.3,2647.1,48.7618]
[1739456678119,0.76104658,2647.3,2647.1,48.7618]
[1739456678418,0.00566658,2647.3,2647.2,0.7554]
[1739456680122,1.88807,2647.9,2647.2,0.7554]
[1739456680123,1.88807,2647.9,2647.2,5.73]
[1739456680323,0.75529,2647.6,2647.5,3.9631]
[1739456680620,6.65271,2648.1,2647.5,3.2078]
[1739456680824,0.75521,2647.9,2647.6,3.92404298]
[1739456681018,5.09561,2648.2,2647.7,0.75525]
[1739456681326,0.00566658,2648.2,2647.7,0.00566658]
[1739456681521,0.75525,2647.8,2647.7,0.00566658]
[1739456682828,0.75525,2647.8,2647.7,6.58e-06]
[1739456683125,6.41035,2647.8,2647.7,6.58e-06]
[1739456683330,12.41035,2647.8,2647.7,6.58e-06]
[1739456685923,14.41035,2647.8,2647.7,6.58e-06]
[1739456686417,8.41035,2647.8,2647.7,6.58e-06]
[1739456687632,14.41035,2647.8,2647.7,6.58e-06]
[1739456688228,15.04714419,2647.8,2647.7,6.58e-06]
[1739456688423,15.53065122,2647.8,2647.7,6.58e-06]
[1739456688728,3.77648,2647.6,2646.6,3.2078]
[1739456689033,0.75554,2646.7,2646.6,3.2078]
[1739456689927,0.75554,2646.7,2646.6,3.96337]
[1739456690122,1.88868,2647.0,2646.5,19.785]
[1739456690332,3.2078,2647.2,2646.7,3.36894407]
[1739456690532,0.75551,2646.9,2646.8,0.7555]
[1739456690935,0.76113658,2647.0,2646.9,0.75549]
[1739456691227,0.00566658,2647.0,2646.9,3.96329]
[1739456691434,0.76112658,2647.0,2646.9,3.2078]
[1739456691632,0.76112658,2647.0,2646.9,3.96329]
[1739456692532,0.76112658,2647.0,2646.9,3.2078]
[1739456693131,0.76112658,2647.0,2646.9,3.96329]
[1739456693332,0.76112658,2647.0,2646.9,3.2078]
[1739456693527,0.75549,2646.9,2646.8,5.745]
[1739456693927,0.00566658,2647.0,2646.8,8.9528]
[1739456694130,0.75549,2646.9,2646.8,9.70831]
[1739456694334,0.76113658,2647.0,2646.9,0.75549]
[1739456694833,0.00566658,2647.0,2646.8,5.745]
[1739456695038,0.75551,2646.8,2646.7,4.5029]
[1739456695232,0.75557,2646.6,2646.5,22.9928]
[1739456695432,0.75557,2646.6,2646.5,19.785]
[1739456696230,0.7556,2646.5,2646.4,0.00566658]
[1739456697135,0.7556,2646.5,2646.4,3.37461065]
[1739456697934,0.7556,2646.5,2646.4,6.58241065]
[1739456698833,0.7556,2646.5,2646.4,0.00566658]
[1739456700931,0.7556,2646.5,2646.4,0.76129658]
[1739456701339,0.75557,2646.7,2646.6,0.75555]
[1739456701633,0.75551,2646.9,2646.8,0.75549]
[1739456701833,0.00566658,2647.0,2646.9,0.75549]
[1739456702035,0.00566658,2647.0,2646.9,3.96329]
[1739456702833,0.00566658,2647.0,2646.9,8.74169]
[1739456704232,0.75539,2647.3,2647.1,0.75541]
[1739456704432,0.75539,2647.3,2647.2,3.2078]
[1739456705137,3.21087344,2647.8,2647.1,5.91936618]
[1739456705438,0.75535,2647.4,2647.3,3.2078]
[1739456705934,0.75534,2647.4,2647.3,3.2078]
[1739456706142,0.00566658,2647.5,2647.1,5.91936618]
[1739456706436,0.7554,2647.2,2647.1,5.91936618]
[1739456707238,3.2078,2647.4,2647.0,5.4676]
[1739456707534,0.00566658,2647.5,2647.1,3.92136618]
[1739456707736,0.75536,2647.4,2647.2,6.73499]
[1739456707936,0.00566658,2647.5,2647.3,3.2078]
[1739456708137,0.00566658,2647.5,2647.4,0.75534]
[1739456708536,0.00307344,2647.8,2647.4,6.67470618]
[1739456708738,0.00307344,2647.8,2647.7,4.67662618]
[1739456709140,0.75830344,2647.8,2647.7,9.67536618]
[1739456709440,0.00307344,2647.8,2647.7,10.43062618]
[1739456710036,0.00307344,2647.8,2647.7,9.67536618]
[1739456710037,0.75830344,2647.8,2647.7,9.67536618]
[1739456710239,0.00307344,2647.8,2647.7,9.67536618]
[1739456710434,0.00307344,2647.8,2647.7,10.43062618]
[1739456710836,0.75830344,2647.8,2647.7,5.754]
[1739456711245,0.75526,2647.7,2647.6,5.2058]
[1739456711538,0.75526,2647.7,2647.6,3.2078]
[1739456711931,0.00307344,2647.8,2647.3,6.68885]
[1739456712140,0.75534,2647.5,2647.3,11.37095]